bitfinex/quotes_SOLUSD_20251106
["timestamp","ask_amount","ask_price","bid_price","bid_amount"]
[1762392617645,7.36,160.34,160.32,16.71635264]
[1762392617866,7.36,160.34,160.32,24.58908625]
[1762392618162,0.2,160.35,160.32,24.58908625]
[1762392618939,0.2,160.37,160.33,9.78882769]
[1762392619144,0.2,160.37,160.36,17.6615613]
[1762392619568,0.2,160.37,160.36,18.3515613]
[1762392619768,0.2,160.37,160.32,21.83133732]
[1762392620078,28.852,160.37,160.34,7.87273361]
[1762392620252,28.132,160.37,160.34,7.87273361]
[1762392620460,28.132,160.37,160.34,8.56273361]
[1762392620650,28.132,160.37,160.34,7.87273361]
[1762392621058,28.132,160.37,160.35,7.87273361]
[1762392621259,7.54,160.37,160.36,7.87273361]
[1762392621967,7.54,160.37,160.35,7.87273361]
[1762392623152,7.54,160.37,160.34,6.92646056]
[1762392623153,0.67,160.36,160.31,10.47882769]
[1762392623468,7.54,160.37,160.32,7.87273361]
[1762392623652,15.41273361,160.37,160.32,7.87273361]
[1762392623987,8.21,160.37,160.32,7.87273361]
[1762392624174,8.21,160.37,160.33,7.87273361]
[1762392624746,8.21,160.37,160.32,8.56273361]
[1762392624950,8.21,160.37,160.32,14.80016445]
[1762392625369,8.21,160.37,160.33,0.69]
[1762392625547,8.21,160.37,160.32,14.11016445]
[1762392625747,8.21,160.37,160.32,14.80016445]
[1762392627075,28.46473361,160.34,160.27,0.69]
[1762392627273,7.87273361,160.32,160.27,14.80211573]
[1762392627484,7.87273361,160.31,160.25,0.69]
[1762392627786,7.87273361,160.3,160.25,0.69]
[1762392627957,7.34,160.29,160.25,0.69]
[1762392628575,7.34,160.29,160.26,6.23986022]
[1762392629155,7.34,160.28,160.25,14.80288039]
[1762392629471,7.34,160.28,160.21,32.8]
[1762392629656,7.34,160.28,160.24,7.87273361]
[1762392629855,7.34,160.28,160.24,8.56273361]
[1762392630160,7.34,160.28,160.24,0.69]
[1762392630361,7.34,160.28,160.23,17.6615613]
[1762392630557,7.34,160.28,160.25,0.69]
[1762392630766,8.01,160.28,160.24,6.2405781]
[1762392631074,7.87273361,160.26,160.21,14.11445273]
[1762392631265,0.67,160.26,160.22,7.87273361]
[1762392631570,20.592,160.29,160.25,7.87273361]
[1762392631571,21.262,160.29,160.25,7.87273361]
[1762392631749,21.262,160.29,160.26,7.87273361]
[1762392631750,7.34,160.28,160.26,7.87273361]
[1762392632150,21.262,160.29,160.26,7.87273361]
[1762392632456,7.34,160.28,160.26,7.87273361]
[1762392632865,7.34,160.28,160.26,14.11252229]
[1762392633054,7.34,160.28,160.27,7.87273361]
[1762392633259,7.34,160.28,160.27,8.56273361]
[1762392633572,7.34,160.28,160.27,7.87273361]
[1762392633970,0.67,160.34,160.27,8.56273361]
[1762392634281,7.34,160.33,160.32,7.87273361]
[1762392634801,7.34,160.33,160.31,7.87273361]
[1762392634978,7.34,160.33,160.31,14.1105105]
[1762392635173,8.01,160.33,160.25,0.62402496]
[1762392635378,8.01,160.33,160.29,7.87273361]
[1762392635596,8.01,160.33,160.3,7.87273361]
[1762392635778,8.01,160.33,160.29,7.87273361]
[1762392636307,8.01,160.33,160.3,7.87273361]
[1762392636595,7.34,160.33,160.3,7.87273361]
[1762392636971,8.06,160.33,160.3,14.11069088]
[1762392637280,8.06,160.33,160.3,6.23795727]
[1762392637483,7.34,160.33,160.3,14.11069088]
[1762392637686,7.34,160.33,160.32,7.87273361]
[1762392637980,7.34,160.33,160.31,8.58273361]
[1762392638209,7.34,160.33,160.3,14.11069088]
[1762392638781,7.34,160.33,160.3,14.82069088]
[1762392639794,7.34,160.33,160.3,30.41644883]
[1762392639994,7.34,160.33,160.31,7.87273361]
[1762392640385,7.34,160.33,160.31,8.58273361]
[1762392640883,7.34,160.33,160.3,14.11069088]
[1762392641198,7.34,160.33,160.3,30.41644883]
[1762392641789,7.34,160.33,160.31,7.87273361]
[1762392642690,7.34,160.33,160.32,8.58273361]
[1762392643090,7.34,160.33,160.32,14.82025856]
[1762392643869,7.34,160.33,160.3,15.59575795]
[1762392644089,7.34,160.33,160.31,6.23791404]
[1762392644604,7.34,160.33,160.31,14.82064765]
[1762392645705,7.34,160.33,160.29,6.94869237]
[1762392645887,7.34,160.33,160.28,16.7377881]
[1762392646193,0.72,160.32,160.28,24.61052171]
[1762392646999,0.72,160.32,160.28,14.82169402]
[1762392647199,0.72,160.32,160.28,6.94896041]
[1762392647675,15.21273361,160.33,160.28,14.82169402]
[1762392647876,15.93273361,160.33,160.28,14.82169402]
[1762392648279,15.93273361,160.33,160.28,14.82157018]
[1762392648598,15.93273361,160.33,160.28,14.82170595]
[1762392649297,8.06,160.33,160.29,7.87273361]
[1762392650300,7.34,160.33,160.3,14.82103679]
[1762392650487,7.34,160.33,160.3,14.11103679]
[1762392651099,8.06,160.33,160.3,14.11103679]
[1762392651489,8.06,160.33,160.31,8.58273361]
[1762392651490,7.34,160.33,160.31,8.58273361]
[1762392651913,0.2,160.37,160.33,9.78882769]
[1762392652084,0.2,160.37,160.36,7.87273361]
[1762392652595,0.2,160.37,160.36,14.82870267]
[1762392653595,0.2,160.37,160.35,9.78882769]
[1762392653904,0.2,160.37,160.36,7.87273361]
[1762392654205,0.2,160.37,160.36,8.59273361]
[1762392654704,0.2,160.37,160.36,6.95596906]
[1762392654918,0.2,160.37,160.36,24.61753036]
[1762392657395,0.2,160.37,160.35,7.87273361]
[1762392658514,0.2,160.37,160.34,7.87273361]
[1762392658696,0.2,160.37,160.35,7.87273361]
[1762392658893,0.2,160.37,160.36,6.23596906]
[1762392659917,0.2,160.37,160.36,14.82870267]
[1762392660232,0.2,160.37,160.36,14.10870267]
[1762392660821,0.2,160.37,160.36,6.23596906]
[1762392661021,0.2,160.37,160.35,14.10899299]
[1762392661220,0.92,160.37,160.35,6.23625938]
[1762392661419,0.2,160.37,160.35,6.23625938]
[1762392661738,0.72,160.36,160.32,25.38240586]
[1762392662035,0.72,160.36,160.32,33.25513947]
[1762392662232,0.72,160.36,160.33,6.23707532]
[1762392662613,0.72,160.36,160.33,29.70264869]
[1762392663134,0.2,160.37,160.33,30.42264869]
[1762392663315,0.2,160.37,160.34,8.59273361]
[1762392665122,0.2,160.37,160.34,6.95645129]
[1762392667937,7.34,160.36,160.34,6.95645129]
[1762392670239,0.2,160.37,160.36,9.78882769]
[1762392670419,0.2,160.37,160.36,17.6615613]
[1762392670623,0.2,160.37,160.36,18.3815613]
[1762392670846,0.2,160.37,160.33,20.592]
[1762392671033,0.2,160.37,160.34,8.59273361]
[1762392671542,0.2,160.37,160.35,8.59273361]
[1762392671725,7.54,160.37,160.35,8.59273361]
[1762392672032,7.54,160.37,160.36,6.23596906]
[1762392672817,7.54,160.37,160.36,6.95596906]
[1762392673949,7.54,160.37,160.36,6.23596906]
[1762392674443,0.2,160.37,160.36,6.23596906]
[1762392674617,7.54,160.37,160.36,6.23596906]
[1762392674951,0.2,160.37,160.36,14.82870267]
[1762392675124,0.2,160.37,160.36,24.61753036]
[1762392676434,0.2,160.37,160.36,16.74479675]
[1762392677533,0.2,160.4,160.37,9.78882769]
[1762392677733,0.2,160.4,160.39,5.60282123]
[1762392677933,1e-08,160.4,160.39,6.32282123]
[1762392678327,1e-08,160.4,160.39,0.72]
[1762392678530,1e-08,160.4,160.39,6.23480266]
[1762392679751,1e-08,160.4,160.39,11.83762389]
[1762392680145,1e-08,160.4,160.39,12.55762389]
[1762392680749,1e-08,160.4,160.39,22.34645158]
[1762392681655,0.2,160.45,160.39,37.83693851]
[1762392681858,0.2,160.45,160.4,0.72]
[1762392682155,6.47282123,160.45,160.39,27.42463056]
[1762392682355,5.60282123,160.44,160.39,6.23480266]
[1762392682544,6.27282123,160.44,160.39,6.23480266]
[1762392682731,0.67,160.43,160.39,6.23480266]
[1762392684966,0.67,160.43,160.39,11.83762389]
[1762392686043,0.67,160.43,160.39,6.23480266]
[1762392686943,0.67,160.43,160.38,9.07658421]
[1762392687465,0.67,160.43,160.38,24.66456276]
[1762392687846,2.15144293,160.42,160.38,6.23514128]
[1762392688044,7.34,160.41,160.38,6.92514128]
[1762392689546,7.34,160.41,160.38,9.07658421]
[1762392689869,7.34,160.41,160.38,24.66456276]
[1762392691166,7.34,160.41,160.38,22.51311983]
[1762392691661,7.34,160.41,160.39,0.69]
[1762392691861,8.01,160.41,160.38,21.82311983]
[1762392692069,8.01,160.41,160.38,23.97456276]
[1762392692257,7.34,160.41,160.38,24.66456276]
[1762392692961,8.01,160.4,160.35,41.87768105]
[1762392693263,8.01,160.4,160.36,0.69]
[1762392693661,8.01,160.4,160.35,8.38768105]
[1762392693662,0.67,160.39,160.35,8.38768105]
[1762392694071,0.67,160.39,160.35,6.92623812]
[1762392695071,0.67,160.39,160.35,0.69]
[1762392697045,0.67,160.39,160.36,6.23596906]
[1762392699073,7.34,160.4,160.39,6.23480266]
[1762392699263,7.34,160.4,160.39,23.97325226]
[1762392699453,7.34,160.4,160.39,24.64325226]
[1762392700455,7.34,160.4,160.39,24.64325226]
[1762392701075,7.34,160.4,160.39,6.90480266]
[1762392701261,7.34,160.4,160.39,6.23480266]
[1762392701469,7.34,160.41,160.39,6.23480266]
[1762392702482,20.592,160.44,160.4,0.67]
[1762392702684,7.34,160.42,160.4,2.82144293]
[1762392703159,7.34,160.42,160.4,0.67]
[1762392704289,7.34,160.42,160.41,6.23402531]
[1762392704450,0.2,160.45,160.41,23.97053151]
[1762392704645,7.34,160.44,160.42,0.67]
[1762392704863,7.34,160.44,160.42,2.15144293]
[1762392705065,7.34,160.44,160.41,24.64053151]
[1762392705249,7.34,160.43,160.41,24.64053151]
[1762392705797,7.34,160.44,160.42,2.82144293]
[1762392706152,7.34,160.44,160.43,6.90324814]
[1762392706855,7.34,160.44,160.43,9.05469107]
[1762392708868,0.2,160.45,160.44,9.78882769]
[1762392709063,0.2,160.45,160.44,12.61027062]
[1762392709370,0.2,160.47,160.44,12.61027062]
[1762392709578,0.2,160.47,160.46,11.94027062]
[1762392710096,0.2,160.47,160.46,12.61027062]
[1762392710391,0.2,160.47,160.46,18.84235338]
[1762392710594,0.88,160.47,160.44,6.23267295]
[1762392710772,0.2,160.47,160.44,9.05411588]
[1762392711286,0.2,160.47,160.45,2.82144293]
[1762392712388,0.2,160.47,160.46,9.06352569]
[1762392716690,7.02,160.5,160.46,24.64373259]
[1762392716896,7.02,160.5,160.48,6.23130608]
[1762392717070,7.32,160.5,160.48,6.23130608]
[1762392717584,0.68,160.52,160.48,6.23130608]
[1762392717785,7.32,160.5,160.48,6.23130608]
[1762392718292,7.32,160.5,160.48,22.48957128]
[1762392718486,7.32,160.5,160.48,21.80957128]
[1762392720583,2.83144293,160.49,160.45,6.23246313]
[1762392720809,2.83144293,160.49,160.41,25.3735811]
[1762392720810,2.15144293,160.46,160.41,25.3735811]
[1762392720992,7.32,160.45,160.41,25.3735811]
[1762392721303,8.0,160.45,160.41,26.0535811]
[1762392721503,8.0,160.45,160.42,21.81772845]
[1762392721801,0.68,160.44,160.41,21.81901112]
[1762392721982,2.83144293,160.44,160.41,6.23394785]
[1762392722182,0.68,160.44,160.41,6.23394785]
[1762392722381,0.68,160.44,160.4,21.81977882]
[1762392724011,2.15144293,160.43,160.4,6.23441396]
[1762392724190,2.83144293,160.44,160.4,6.23441396]
[1762392724387,2.83144293,160.44,160.37,0.68]
[1762392724388,0.68,160.43,160.37,0.68]
[1762392724584,0.68,160.43,160.36,9.78882769]
[1762392724585,2.15144293,160.41,160.36,9.78882769]
[1762392724784,8.0,160.4,160.36,9.78882769]
[1762392725086,8.0,160.4,160.36,12.62027062]
[1762392726201,8.0,160.4,160.37,6.23558022]
[1762392727105,7.32,160.4,160.37,21.82453077]
[1762392727684,7.32,160.4,160.37,6.23558022]
[1762392727995,8.0,160.4,160.37,6.23558022]
[1762392729604,2.83144293,160.39,160.37,6.23558022]
[1762392729907,0.68,160.39,160.37,6.23558022]
[1762392730082,0.68,160.38,160.37,6.23558022]
[1762392730283,0.68,160.39,160.35,6.23635796]
[1762392731119,0.61973227,160.47,160.39,20.592]
[1762392731120,18.72951459,160.43,160.39,20.592]
[1762392731294,7.32,160.44,160.38,35.63144293]
[1762392731484,9.47144293,160.44,160.38,33.48]
[1762392731684,0.68,160.43,160.38,33.48]
[1762392732725,2.83144293,160.43,160.39,6.23480266]
[1762392733020,0.68,160.44,160.39,24.65325226]
[1762392733318,8.0,160.43,160.39,24.65325226]
[1762392733620,7.32,160.42,160.39,22.50180933]
[1762392733786,7.32,160.42,160.39,24.65325226]
[1762392734416,8.0,160.42,160.39,21.82180933]
[1762392734924,7.32,160.42,160.39,21.82180933]
[1762392735329,7.32,160.42,160.39,23.97325226]
[1762392735714,0.68,160.41,160.35,33.48]
[1762392735913,2.83144293,160.41,160.35,9.06746518]
[1762392736234,0.68,160.41,160.37,2.15144293]
[1762392736432,0.68,160.48,160.4,3.36148762]
[1762392736611,7.32,160.47,160.45,6.23247117]
[1762392737230,0.68,160.46,160.44,6.23271787]
[1762392737621,0.68,160.46,160.42,6.23358865]
[1762392737805,4.04148762,160.46,160.42,6.23358865]
[1762392738209,0.68,160.45,160.42,6.23358865]
[1762392738627,3.36148762,160.44,160.41,6.23393797]
[1762392738825,8.0,160.43,160.41,6.23393797]
[1762392739049,8.0,160.43,160.37,0.68]
[1762392739050,20.592,160.4,160.33,18.7260073]
[1762392739209,3.36148762,160.37,160.34,6.23670798]
[1762392739404,4.04148762,160.37,160.34,6.23670798]
[1762392739621,0.68,160.37,160.34,6.23670798]
[1762392739821,4.04148762,160.37,160.34,6.23670798]
[1762392740453,7.87543205,160.37,160.33,6.2371359]
[1762392740745,0.68,160.36,160.33,6.2371359]
[1762392740950,7.32,160.35,160.33,6.2371359]
[1762392741245,7.32,160.35,160.33,6.9171359]
[1762392741450,7.32,160.39,160.34,18.34425974]
[1762392741749,7.32,160.4,160.35,7.87543205]
[1762392741935,7.32,160.39,160.35,8.55543205]
[1762392742134,7.32,160.39,160.35,8.53543205]
[1762392742334,7.32,160.39,160.36,21.82589173]
[1762392743449,7.32,160.39,160.36,22.48589173]
[1762392743838,7.32,160.39,160.36,30.36132378]
[1762392746053,7.32,160.39,160.37,7.87543205]
[1762392747262,7.32,160.39,160.36,22.48589173]
[1762392747263,7.32,160.39,160.36,30.36132378]
[1762392747761,7.87543205,160.44,160.38,7.87543205]
[1762392747937,7.32,160.43,160.42,6.2336367]
[1762392749364,8.01,160.43,160.41,6.2339094]
[1762392749568,0.69,160.42,160.41,6.2339094]
[1762392749946,0.69,160.42,160.39,7.87543205]
[1762392750154,7.32,160.43,160.39,7.87543205]
[1762392750340,7.32,160.43,160.39,8.53543205]
[1762392752446,7.32,160.43,160.4,6.23441396]
[1762392754162,0.69,160.42,160.39,6.23479677]
[1762392754870,7.32,160.43,160.38,14.77062347]
[1762392755075,7.32,160.43,160.38,22.48316997]
[1762392755244,8.01,160.43,160.39,0.66]
[1762392755965,7.32,160.43,160.39,8.53543205]
[1762392756137,7.32,160.43,160.39,0.66]
[1762392756455,7.32,160.43,160.39,8.57543205]
[1762392756645,7.87543205,160.44,160.4,6.23441396]
[1762392756854,7.32,160.43,160.4,6.23441396]
[1762392757446,7.99,160.43,160.4,6.23441396]
[1762392757955,0.67,160.43,160.4,6.23441396]
[1762392758155,7.32,160.42,160.4,6.23441396]
[1762392758375,7.32,160.42,160.4,6.93441396]
[1762392758850,0.67,160.47,160.41,8.57543205]
[1762392759055,15.86543205,160.46,160.4,29.69588092]
[1762392759254,7.99,160.46,160.4,30.39588092]
[1762392759457,0.67,160.46,160.41,8.57543205]
[1762392759767,7.32,160.45,160.42,7.87543205]
[1762392759957,7.32,160.45,160.43,7.87543205]
[1762392760164,7.32,160.45,160.43,8.57543205]
[1762392760483,7.32,160.45,160.41,10.48882769]
[1762392760777,0.67,160.44,160.42,6.2336367]
[1762392761150,0.67,160.44,160.4,24.16146696]
[1762392761151,8.54543205,160.44,160.4,6.23403886]
[1762392761346,0.67,160.43,160.4,6.23403886]
[1762392761969,0.67,160.44,160.4,29.69550582]
[1762392762142,0.67,160.43,160.4,29.69550582]
[1762392762349,0.67,160.43,160.4,21.82007377]
[1762392762775,0.67,160.43,160.4,25.18128045]
[1762392763071,0.67,160.43,160.4,21.82007377]
[1762392763660,0.67,160.49,160.43,30.38082769]
[1762392763860,0.67,160.52,160.48,3.36120668]
[1762392764047,0.67,160.52,160.47,3.36120668]
[1762392764048,7.32,160.51,160.47,3.36120668]
[1762392764472,7.99,160.51,160.48,3.36120668]
[1762392764875,7.99,160.51,160.49,6.23091781]
[1762392766174,0.2,160.53,160.5,3.36120668]
[1762392766364,7.32,160.52,160.51,3.36120668]
[1762392766757,7.32,160.52,160.51,6.23014142]
[1762392768388,0.2,160.53,160.51,9.5913481]
[1762392768589,7.32,160.52,160.51,10.2913481]
[1762392769463,0.2,160.53,160.51,20.08017579]
[1762392769679,0.2,160.53,160.52,10.48882769]
[1762392771478,0.2,160.53,160.52,20.07978767]
[1762392771683,0.2,160.53,160.52,10.29095998]
[1762392772410,0.2,160.53,160.52,20.07978767]
[1762392774693,1e-08,160.53,160.52,52.87978767]
[1762392775277,1e-08,160.53,160.52,49.51858099]
[1762392775493,1e-08,160.53,160.52,52.87978767]
[1762392778580,1e-08,160.53,160.52,52.17978767]
[1762392778797,1e-08,160.53,160.52,6.2297533]
[1762392779194,0.71000001,160.53,160.52,6.2297533]
[1762392779800,0.71000001,160.53,160.51,6.23014142]
[1762392780004,0.71000001,160.53,160.48,3.36120668]
[1762392780205,4.07120669,160.53,160.48,25.17077796]
[1762392780405,3.36120668,160.51,160.46,6.23208276]
[1762392780711,10.66120668,160.5,160.46,6.23208276]
[1762392781088,23.95320668,160.47,160.41,15.58445619]
[1762392781291,3.36120668,160.46,160.41,15.58445619]
[1762392781491,8.01,160.45,160.41,15.58445619]
[1762392781699,8.01,160.45,160.42,6.2336367]
[1762392781700,11.37120668,160.45,160.42,6.2336367]
[1762392781893,0.71,160.44,160.41,21.8184815]
[1762392782909,7.3,160.45,160.41,25.87968818]
[1762392783215,7.3,160.45,160.42,3.36120668]
[1762392783890,7.3,160.45,160.43,6.23324814]
[1762392784306,0.71,160.46,160.43,6.23324814]
[1762392784507,7.3,160.45,160.43,6.23324814]
[1762392784712,7.3,160.45,160.42,6.2335078]
[1762392786015,7.3,160.45,160.42,21.81759955]
[1762392786611,0.71,160.49,160.44,3.36120668]
[1762392786804,7.3,160.48,160.46,3.36120668]
[1762392787121,7.3,160.47,160.44,3.36120668]
[1762392787419,7.3,160.47,160.45,3.36120668]
[1762392787798,7.3,160.47,160.44,4.06120668]
[1762392787998,7.3,160.47,160.45,6.23247117]
[1762392790495,4.07120668,160.52,160.46,4.06120668]
[1762392790809,0.71,160.52,160.49,3.36120668]
[1762392791119,7.3,160.52,160.51,3.36120668]
[1762392791496,7.3,160.52,160.5,4.06120668]
[1762392791899,4.07120668,160.51,160.45,15.58117793]
[1762392792125,3.36120668,160.5,160.44,3.36120668]
[1762392792415,23.95320668,160.49,160.43,4.06120668]
[1762392792621,20.592,160.49,160.47,3.36120668]
[1762392793427,11.37120668,160.52,160.45,0.7]
[1762392793604,20.592,160.49,160.47,3.36120668]
[1762392793805,20.592,160.49,160.45,0.7]
[1762392794012,20.592,160.49,160.47,3.36120668]
[1762392794212,20.592,160.49,160.47,9.59260547]
[1762392794415,20.592,160.49,160.47,14.0927356]
[1762392795216,20.592,160.49,160.47,6.23139879]
[1762392795419,7.3,160.48,160.47,6.23139879]
[1762392795822,7.3,160.48,160.47,14.0927356]
[1762392796413,7.3,160.48,160.47,12.52809294]
[1762392796720,7.3,160.49,160.47,28.10732893]
[1762392796921,7.3,160.49,160.48,5.59669415]
[1762392797926,0.71,160.52,160.49,6.23091781]
[1762392798227,7.3,160.51,160.49,6.23091781]
[1762392799123,8.01,160.51,160.49,6.23091781]
[1762392800134,0.71,160.51,160.49,6.23091781]
[1762392800309,7.3,160.5,160.49,5.59669415]
[1762392802034,7.3,160.5,160.49,11.82761196]
[1762392802331,1e-08,160.53,160.49,28.12490649]
[1762392802509,7.3,160.52,160.51,5.59669415]
[1762392804839,7.3,160.52,160.51,6.23014142]
[1762392805521,7.3,160.52,160.51,11.82683557]
[1762392806640,7.3,160.52,160.5,11.82720906]
[1762392806843,7.3,160.52,160.5,6.23051491]
[1762392807020,7.3,160.52,160.5,11.82720906]
[1762392807514,0.71,160.51,160.5,6.23051491]
[1762392807714,8.01,160.52,160.5,6.23051491]
[1762392807936,7.3,160.52,160.5,6.23051491]
[1762392809241,0.71,160.51,160.48,11.82790144]
[1762392809437,0.71,160.51,160.48,27.40616664]
[1762392810230,0.71,160.51,160.48,11.82790144]
[1762392810629,7.3,160.52,160.48,11.82790144]
[1762392810835,8.01,160.52,160.48,11.82790144]
[1762392811033,8.01,160.52,160.48,27.40616664]
[1762392811351,8.01,160.52,160.49,5.59669415]
[1762392811549,27.892,160.51,160.48,28.12616664]
[1762392812234,27.892,160.51,160.48,27.40616664]
[1762392812435,28.602,160.51,160.48,21.80947249]
[1762392812645,27.892,160.51,160.48,11.82790144]
[1762392813457,0.71,160.5,160.48,11.82790144]
[1762392813751,28.602,160.51,160.48,6.23120729]
[1762392814177,6.30669415,160.5,160.46,6.23189433]
[1762392814636,0.71,160.5,160.46,6.23189433]
[1762392814840,33.48869415,160.51,160.46,6.23189433]
[1762392814841,0.71,160.49,160.46,6.23189433]
[1762392815055,7.3,160.48,160.46,6.23189433]
[1762392816755,0.69,160.47,160.45,39.03233284]
[1762392817258,2.83994306,160.47,160.45,32.8]
[1762392817458,2.14994306,160.46,160.37,0.72]
[1762392817761,2.14994306,160.43,160.38,2.14994306]
[1762392818062,7.3,160.42,160.38,2.14994306]
[1762392818558,7.99,160.42,160.39,6.23480266]
[1762392819067,7.3,160.42,160.39,8.38474572]
[1762392819276,7.3,160.42,160.4,2.14994306]
[1762392819949,7.3,160.42,160.41,2.14994306]
[1762392820256,7.3,160.42,160.4,2.86994306]
[1762392820655,7.3,160.42,160.41,6.23402531]
[1762392821567,0.69,160.45,160.41,6.23402531]
[1762392821757,7.3,160.44,160.43,2.14994306]
[1762392822659,7.3,160.44,160.43,8.3831912]
[1762392822848,30.73194306,160.44,160.34,31.1820722]
[1762392823046,20.592,160.41,160.35,0.72]
[1762392823251,7.3,160.4,160.36,2.14994306]
[1762392823956,0.69,160.39,160.36,2.14994306]
[1762392824458,0.69,160.39,160.37,6.23558022]
[1762392826452,7.3,160.4,160.37,6.23558022]
[1762392826661,7.99,160.4,160.37,6.23558022]
[1762392827449,0.69,160.39,160.37,6.23558022]
[1762392828079,7.3,160.4,160.37,6.23558022]
[1762392828257,7.99,160.4,160.37,8.38552328]
[1762392828764,0.69,160.4,160.37,8.38552328]
[1762392828967,7.3,160.39,160.37,8.38552328]
[1762392829173,7.99,160.39,160.37,8.38552328]
[1762392830691,7.99,160.39,160.38,2.14994306]
[1762392830692,7.3,160.39,160.38,2.14994306]
[1762392830875,7.3,160.43,160.38,2.86994306]
[1762392831191,7.3,160.43,160.42,2.14994306]
[1762392831564,7.3,160.43,160.42,2.86994306]
[1762392831991,7.3,160.43,160.39,0.7]
[1762392832197,7.3,160.43,160.42,2.14994306]
[1762392832568,7.3,160.43,160.42,2.84994306]
[1762392832969,7.3,160.43,160.42,9.08357976]
[1762392835066,7.3,160.43,160.42,18.87240745]
[1762392835267,7.3,160.46,160.42,65.62468271]
[1762392835503,7.3,160.46,160.45,2.14994306]
[1762392835796,7.3,160.5,160.45,2.14994306]
[1762392836000,8.01,160.5,160.46,2.84994306]
[1762392836589,7.3,160.5,160.47,6.23169439]
[1762392836893,0.71,160.49,160.46,8.38190537]
[1762392837205,8.01,160.5,160.46,24.66211227]
[1762392837376,7.3,160.5,160.47,2.14994306]
[1762392837573,7.3,160.5,160.49,2.14994306]
[1762392838687,7.3,160.5,160.49,8.38086087]
[1762392839280,7.3,160.5,160.49,6.23091781]
[1762392839478,8.01,160.5,160.44,0.7]
[1762392839680,10.15994306,160.5,160.44,2.84994306]
[1762392840277,8.01,160.5,160.44,0.7]
[1762392840474,8.01,160.5,160.41,29.11908858]
[1762392840475,8.01,160.5,160.45,2.84994306]
[1762392840787,7.3,160.5,160.47,8.38163745]
[1762392840991,7.3,160.5,160.47,21.81093038]
[1762392841305,7.3,160.5,160.46,6.23195881]
[1762392841493,7.3,160.5,160.46,6.93195881]
[1762392841684,8.01,160.5,160.46,8.38190187]
[1762392841885,0.71,160.49,160.45,6.23239499]
[1762392842103,0.71,160.49,160.45,9.08233805]
[1762392842416,7.3,160.5,160.47,2.14994306]
[1762392843005,8.01,160.5,160.48,6.23130608]
[1762392843182,8.01,160.5,160.47,6.23161744]
[1762392845907,2.85994306,160.49,160.43,0.7]
[1762392846207,2.14994306,160.48,160.43,2.84994306]
[1762392846509,0.71,160.48,160.43,2.84994306]
[1762392846705,21.302,160.47,160.42,6.2336367]
[1762392846907,2.14994306,160.43,160.41,6.23389993]
[1762392847111,7.3,160.42,160.41,6.23389993]
[1762392847409,7.3,160.42,160.38,0.7]
[1762392847610,2.85994306,160.41,160.36,6.23596906]
[1762392847983,2.85994306,160.41,160.36,6.93596906]
[1762392848199,2.85994306,160.41,160.36,22.52589173]
[1762392848403,2.85994306,160.41,160.37,0.7]
[1762392850026,2.85994306,160.41,160.38,6.23519142]
[1762392850688,7.3,160.42,160.39,0.7]
[1762392850913,7.3,160.42,160.39,2.84994306]
[1762392851301,7.3,160.42,160.4,0.7]
[1762392851910,7.3,160.42,160.39,2.14994306]
[1762392852090,7.3,160.42,160.4,6.23441396]
[1762392853217,7.3,160.42,160.39,2.84994306]
[1762392853218,0.71,160.41,160.39,6.2347887]
[1762392853402,8.01,160.42,160.39,6.2347887]
[1762392853710,7.3,160.42,160.39,6.2347887]
[1762392854305,7.3,160.42,160.39,6.9347887]
[1762392854710,7.3,160.42,160.39,9.08473176]
[1762392855512,8.01,160.42,160.38,6.23513669]